bitfinex-derivatives/quotes_BTCF0:USTF0_20250405
["timestamp","ask_amount","ask_price","bid_price","bid_amount"]
[1743868763563,0.20152,82653.0,82647.0,0.092]
[1743868764965,0.19752,82653.0,82647.0,0.092]
[1743868765154,0.20152,82653.0,82647.0,0.092]
[1743868765354,0.20152,82653.0,82647.0,0.03147757]
[1743868766661,0.20152,82653.0,82647.0,0.11620667]
[1743868766863,0.20152,82653.0,82647.0,0.20093577]
[1743868767064,0.20152,82653.0,82647.0,0.1694582]
[1743868767767,0.20152,82653.0,82648.0,0.0847277]
[1743868768065,0.20152,82653.0,82649.0,0.0847273]
[1743868768266,0.20152,82653.0,82649.0,0.1029]
[1743868768458,0.20152,82653.0,82650.0,0.0847264]
[1743868768659,0.20152,82653.0,82650.0,0.1162264]
[1743868768859,0.0809405,82653.0,82652.0,0.4455246]
[1743868769055,0.00018153,82659.0,82652.0,0.403162]
[1743868769256,0.00018153,82659.0,82656.0,0.0847201]
[1743868769466,0.00018153,82659.0,82657.0,0.1344]
[1743868769665,0.00018153,82659.0,82657.0,0.1274]
[1743868770067,0.00018153,82659.0,82657.0,0.12804]
[1743868771261,0.1002,82666.0,82657.0,0.12804]
[1743868771466,0.1002,82666.0,82665.0,0.4455113]
[1743868771668,0.1002,82666.0,82665.0,0.4462313]
[1743868771865,0.1002,82666.0,82665.0,0.36152]
[1743868772060,0.10128,82666.0,82665.0,0.36152]
[1743868772256,0.10128,82666.0,82665.0,0.00072]
[1743868772571,0.10528,82666.0,82657.0,0.1029]
[1743868772871,0.10828,82666.0,82657.0,0.10358]
[1743868773273,0.10828,82666.0,82658.0,0.0847178]
[1743868773572,0.1072,82666.0,82658.0,0.0853578]
[1743868774269,0.0959,82665.0,82658.0,0.0853578]
[1743868774459,0.0959,82665.0,82659.0,0.0847168]
[1743868774665,0.1022,82664.0,82659.0,0.1868768]
[1743868775171,0.0959,82663.0,82659.0,0.1868768]
[1743868775374,0.0959,82663.0,82659.0,0.10216]
[1743868775565,0.1022,82662.0,82659.0,0.10216]
[1743868775766,0.1022,82662.0,82659.0,0.00076]
[1743868775967,0.0959,82661.0,82659.0,0.00076]
[1743868776372,0.1064,82660.0,82659.0,0.00076]
[1743868776859,0.1074,82660.0,82659.0,0.00076]
[1743868777476,0.1074,82660.0,82657.0,0.14933757]
[1743868777670,0.0988,82659.0,82657.0,0.23405647]
[1743868778073,0.1064,82658.0,82657.0,0.23405647]
[1743868778770,0.08869,82658.0,82657.0,0.23405647]
[1743868779366,0.08969,82658.0,82657.0,0.23405647]
[1743868780372,0.08969,82658.0,82657.0,0.17353404]
[1743868780568,0.08969,82658.0,82657.0,0.08881514]
[1743868780971,0.06909784,82658.0,82657.0,0.17653464]
[1743868781176,0.07009784,82658.0,82657.0,0.27983464]
[1743868781975,0.0988,82665.0,82657.0,0.27983464]
[1743868782181,0.36076,82669.0,82661.0,0.3608]
[1743868783281,0.001,82665.0,82661.0,0.4031573]
[1743868783576,0.001,82665.0,82662.0,0.04157757]
[1743868783880,0.0985,82664.0,82661.0,0.4455153]
[1743868784472,0.09974001,82664.0,82661.0,0.4455153]
[1743868785376,0.09974001,82664.0,82661.0,0.4465153]
[1743868785580,0.0995,82664.0,82661.0,0.4465153]
[1743868786181,0.0985,82664.0,82661.0,0.4465153]
[1743868786380,0.0995,82664.0,82661.0,0.4465153]
[1743868786578,0.0995,82664.0,82661.0,0.38599287]
[1743868787382,0.0995,82664.0,82661.0,0.47070787]
[1743868787583,0.0995,82664.0,82661.0,0.38599257]
[1743868787782,0.0995,82664.0,82661.0,0.47070777]
[1743868787977,0.0995,82664.0,82663.0,0.0847133]
[1743868788179,0.0995,82664.0,82661.0,0.38599197]
[1743868788485,0.0995,82664.0,82662.0,0.0847142]
[1743868788885,0.0995,82664.0,82661.0,0.48949197]
[1743868789085,0.0985,82664.0,82661.0,0.48949197]
[1743868789287,0.0995,82664.0,82661.0,0.48949197]
[1743868789472,0.0995,82664.0,82661.0,0.42896954]
[1743868790093,0.0995,82664.0,82661.0,0.42796954]
[1743868790389,0.0995,82664.0,82663.0,0.001]
[1743868791285,0.0995,82664.0,82661.0,0.42796954]
[1743868791491,0.0995,82664.0,82661.0,0.42896954]
[1743868792091,0.0995,82664.0,82661.0,0.34425514]
[1743868792482,0.0995,82664.0,82662.0,0.0958]
[1743868792688,0.0995,82664.0,82661.0,0.34425514]
[1743868793099,0.0995,82664.0,82663.0,0.001]
[1743868793689,0.0995,82664.0,82662.0,0.001]
[1743868794189,0.0995,82664.0,82663.0,0.001]
[1743868794798,0.0995,82664.0,82662.0,0.001]
[1743868795587,0.0995,82664.0,82660.0,0.084716]
[1743868796302,0.0995,82664.0,82663.0,0.001]
[1743868796899,0.0995,82664.0,82660.0,0.085716]
[1743868797590,0.0995,82664.0,82663.0,0.001]
[1743868798601,0.0995,82664.0,82659.0,0.21670346]
[1743868798801,0.0995,82664.0,82658.0,0.3608]
[1743868798997,0.0979,82663.0,82658.0,0.3608]
[1743868799198,0.0979,82663.0,82660.0,0.001]
[1743868799495,0.104,82662.0,82660.0,0.001]
[1743868799901,0.104,82662.0,82659.0,0.002]
[1743868799902,0.10528,82662.0,82659.0,0.002]
[1743868800526,0.10528,82662.0,82658.0,0.3608]
[1743868800811,0.10528,82662.0,82660.0,0.001]
[1743868801108,0.1899946,82662.0,82658.0,0.3608]
[1743868801298,0.1899946,82662.0,82659.0,0.001]
[1743868801299,0.10528,82662.0,82659.0,0.001]
[1743868801807,0.10528,82662.0,82651.0,0.098]
[1743868802997,0.10628,82662.0,82658.0,0.001]
[1743868803504,0.10628,82662.0,82651.0,0.099]
[1743868803897,0.0847155,82661.0,82651.0,0.1837254]
[1743868804097,0.1483571,82662.0,82658.0,0.001]
[1743868804296,0.1019,82660.0,82658.0,0.001]
[1743868804503,0.18785651,82660.0,82658.0,0.001]
[1743868804804,0.18785651,82660.0,82651.0,0.01947757]
[1743868805301,0.0847177,82659.0,82651.0,0.01947757]
[1743868805703,0.0986,82658.0,82651.0,0.01947757]
[1743868805891,0.4031609,82655.0,82651.0,0.003]
[1743868806098,0.0847238,82653.0,82651.0,0.003]
[1743868806303,0.0986,82652.0,82651.0,0.003]
[1743868806504,0.1846446,82652.0,82651.0,0.003]
[1743868807097,0.0847286,82649.0,82645.0,0.1054]
[1743868807295,0.0986,82648.0,82643.0,0.6174]
[1743868807702,0.0986,82648.0,82643.0,0.55687757]
[1743868808103,0.105,82647.0,82643.0,0.65607757]
[1743868808506,0.09964268,82646.0,82643.0,0.65607757]
[1743868809008,0.09964268,82646.0,82643.0,0.55987757]
[1743868809396,0.002,82648.0,82647.0,0.0847297]
[1743868809596,0.0423542,82668.0,82645.0,0.0423658]
[1743868809800,0.36204001,82664.0,82648.0,0.3608]
[1743868810001,0.36204001,82664.0,82650.0,0.0847264]
[1743868810307,0.36204001,82664.0,82652.0,0.0847241]
[1743868810512,0.36204001,82664.0,82653.0,0.1935]
[1743868810810,0.36204001,82664.0,82653.0,0.23037757]
[1743868811011,0.1023,82663.0,82653.0,0.23037757]
[1743868811201,0.10366,82663.0,82653.0,0.23037757]
[1743868812109,0.10466,82663.0,82653.0,0.23337757]
[1743868812806,0.0847156,82661.0,82653.0,0.0999]
[1743868813007,0.1023,82660.0,82653.0,0.1019]
[1743868813407,0.1023,82660.0,82653.0,0.0999]
[1743868813708,0.1023,82660.0,82653.0,0.1019]
[1743868813910,0.1023,82660.0,82653.0,0.04137757]
[1743868814103,0.1033,82660.0,82653.0,0.03837757]
[1743868814304,0.1033,82660.0,82653.0,0.04237757]
[1743868814811,0.1880166,82660.0,82653.0,0.04237757]
[1743868815011,0.1890166,82660.0,82653.0,0.04237757]
[1743868815815,0.0847199,82657.0,82653.0,0.04237757]
[1743868816015,0.1055,82656.0,82653.0,0.04237757]
[1743868816207,0.1055,82656.0,82653.0,0.006]
[1743868816515,0.1036,82655.0,82653.0,0.006]
[1743868816814,0.1883225,82655.0,82645.0,0.0993]
[1743868817016,0.0983,82654.0,82649.0,0.1029]
[1743868817211,0.0983,82654.0,82653.0,0.001]
[1743868817413,0.09958,82654.0,82653.0,0.005]
[1743868817811,0.09958,82654.0,82653.0,0.004]
[1743868818014,0.09958,82654.0,82653.0,0.005]
[1743868818214,0.10058,82654.0,82653.0,0.001]
[1743868818815,0.10058,82654.0,82649.0,0.0859]
[1743868819814,0.10058,82654.0,82649.0,0.02540247]
[1743868820009,0.09958,82654.0,82649.0,0.02140247]
[1743868820216,0.10158,82654.0,82649.0,0.02140247]
[1743868820415,0.1863028,82654.0,82649.0,0.02140247]
[1743868820816,0.1853028,82654.0,82649.0,0.02140247]
[1743868821017,0.1863028,82654.0,82649.0,0.02140247]
[1743868822119,0.0847249,82652.0,82645.0,0.0993]
[1743868822309,0.0962,82651.0,82645.0,0.0993]
[1743868822511,0.2018,82651.0,82645.0,0.0993]
[1743868822718,0.0423647,82648.0,82642.0,0.00018153]
[1743868822918,0.3135,82647.0,82641.0,0.300484]
[1743868823217,0.3982298,82647.0,82641.0,0.403084]
[1743868823812,0.3135,82647.0,82641.0,0.403084]
[1743868824212,0.3145,82647.0,82641.0,0.403084]
[1743868824512,0.3155,82647.0,82641.0,0.403084]
[1743868825418,0.3155,82647.0,82641.0,0.4878196]
[1743868825816,0.31674001,82647.0,82642.0,0.0983]
[1743868826020,0.31674001,82647.0,82641.0,0.403084]
[1743868826413,0.31674001,82647.0,82641.0,0.4878197]
[1743868827021,0.31674001,82647.0,82641.0,0.5725553]
[1743868827423,0.31674001,82647.0,82641.0,0.1873356]
[1743868827613,0.31674001,82647.0,82641.0,0.272071]
[1743868827813,0.31674001,82647.0,82641.0,0.1873354]
[1743868828217,0.31674001,82647.0,82641.0,0.1026]
[1743868828418,0.21404001,82647.0,82646.0,0.0847307]
[1743868828721,0.15234001,82647.0,82646.0,0.0847307]
[1743868828921,0.15234001,82647.0,82646.0,0.03980247]
[1743868829320,0.15234001,82647.0,82640.0,0.17882939]
[1743868829526,0.15234001,82647.0,82640.0,0.105]
[1743868830315,0.04714001,82647.0,82640.0,0.105]
[1743868830627,0.04714001,82647.0,82646.0,0.0847307]
[1743868830628,0.04093979,82647.0,82646.0,0.0847307]
[1743868830927,0.02873821,82647.0,82645.0,0.0847317]
[1743868831128,0.0977,82646.0,82645.0,0.0847317]
[1743868831516,0.0977,82646.0,82644.0,0.0847327]
[1743868832119,0.0977,82646.0,82645.0,0.0847318]
[1743868832314,0.0977,82646.0,82642.0,0.042367]
[1743868832522,0.0977,82646.0,82641.0,0.0625]
[1743868832724,0.0977,82646.0,82643.0,0.0847336]
[1743868833017,0.0977,82646.0,82645.0,0.0847318]
[1743868833213,0.0977,82646.0,82644.0,0.0847325]
[1743868833624,0.0987,82646.0,82645.0,0.0847318]
[1743868834028,0.1012,82646.0,82645.0,0.0847318]
[1743868834224,0.1012,82646.0,82645.0,0.1472318]
[1743868834225,0.00328,82646.0,82645.0,0.1472318]
[1743868834526,0.002,82646.0,82645.0,0.1472318]
[1743868835030,0.002,82646.0,82645.0,0.0625]
[1743868835326,0.002,82646.0,82645.0,0.1472318]
[1743868835628,0.002,82646.0,82645.0,0.0625]
[1743868836428,0.002,82646.0,82645.0,0.1472318]
[1743868838027,0.002,82646.0,82645.0,0.08673427]
[1743868838233,0.35437,82657.0,82649.0,0.0423634]
[1743868838530,0.3608,82671.0,82661.0,0.0847148]
[1743868838730,0.00142154,82667.0,82662.0,0.1879143]
[1743868839024,0.00142154,82667.0,82662.0,0.1032]
[1743868839430,0.3608,82664.0,82657.0,0.20037878]
[1743868839722,0.3369,82664.0,82656.0,0.00018153]
[1743868839927,0.27952,82664.0,82657.0,0.0847193]
[1743868840224,0.1065,82666.0,82657.0,0.0847193]
[1743868840416,0.1065,82666.0,82656.0,0.08490193]
[1743868840618,0.001,82657.0,82656.0,0.08490193]
[1743868841125,0.1065,82666.0,82656.0,0.00018153]
[1743868841429,0.001,82664.0,82657.0,0.003]
[1743868841827,0.1044,82663.0,82657.0,0.0847194]
[1743868842021,0.1044,82663.0,82656.0,0.08890173]
[1743868842330,0.1044,82663.0,82656.0,0.08490173]
[1743868842631,0.1044,82663.0,82657.0,0.0994]
[1743868842929,0.1044,82663.0,82657.0,0.1024]
[1743868843629,0.1024,82662.0,82657.0,0.0994]
[1743868844021,0.1011,82661.0,82657.0,0.1881194]
[1743868844324,0.1011,82661.0,82657.0,0.04290247]
[1743868844517,0.1024,82660.0,82657.0,0.04290247]
[1743868844722,0.1024,82660.0,82657.0,0.12762147]
[1743868844922,0.1011,82659.0,82657.0,0.12762147]
[1743868845123,0.1011,82659.0,82657.0,0.13026147]
[1743868845330,0.1024,82658.0,82657.0,0.13326147]
[1743868845626,0.34266153,82671.0,82665.0,0.0847104]
[1743868845826,0.1011,82670.0,82666.0,0.2042]
[1743868846032,0.0998,82679.0,82673.0,0.0847024]
[1743868846225,0.0998,82679.0,82674.0,0.0991]
[1743868846431,0.0998,82679.0,82675.0,0.0847009]
[1743868846726,0.0998,82679.0,82675.0,0.00964711]
[1743868847119,0.10044,82679.0,82674.0,0.04824958]
[1743868847323,0.0998,82679.0,82675.0,0.084701]
[1743868847530,0.0998,82679.0,82675.0,0.00068]
[1743868847729,0.0998,82679.0,82675.0,0.0853808]
[1743868847929,0.0998,82679.0,82675.0,0.00068]
[1743868848130,0.1028,82679.0,82675.0,0.00068]
[1743868848527,0.0998,82679.0,82675.0,0.0853808]
[1743868848828,0.101,82678.0,82676.0,0.0846999]
[1743868849023,0.10188,82678.0,82676.0,0.00064]
[1743868849231,0.0999,82677.0,82676.0,0.08534]
[1743868849429,0.10074,82677.0,82676.0,0.08534]
[1743868849631,0.10074,82677.0,82676.0,0.00064]
[1743868850331,0.10074,82677.0,82675.0,0.00929124]
[1743868850520,0.1014,82676.0,82675.0,0.084701]
[1743868850933,0.1014,82676.0,82675.0,0.191801]
[1743868851917,0.07596709,82676.0,82675.0,0.191801]
[1743868852116,0.01640709,82676.0,82675.0,0.191801]
[1743868852720,1e-08,82676.0,82675.0,0.191801]
[1743868853124,0.09930001,82676.0,82675.0,0.20081619]
[1743868853927,0.10130001,82676.0,82675.0,0.20081619]
[1743868854232,0.08846001,82676.0,82675.0,0.20081619]
[1743868854534,0.06038001,82676.0,82675.0,0.20081619]
[1743868854735,0.03230001,82676.0,82675.0,0.20081619]
[1743868855036,0.1033,82684.0,82675.0,0.20081619]
[1743868855330,0.10412,82684.0,82675.0,0.20149579]
[1743868855537,0.10412,82684.0,82675.0,0.20149569]
[1743868856243,0.10412,82684.0,82675.0,0.14099816]
[1743868856428,0.1052,82683.0,82675.0,0.14099816]
[1743868856737,0.001,82676.0,82675.0,0.14099816]
[1743868857239,0.1052,82683.0,82675.0,0.14099816]
[1743868857536,0.10624001,82683.0,82675.0,0.14099816]
[1743868857939,0.001,82676.0,82675.0,0.14099816]
[1743868858427,0.1052,82683.0,82675.0,0.05629766]
[1743868858628,0.1112,82683.0,82675.0,0.05629766]
[1743868858830,0.1112,82683.0,82675.0,0.14099786]
[1743868859038,0.1112,82683.0,82676.0,0.0846997]
[1743868859339,0.1112,82683.0,82674.0,0.04400971]
[1743868859340,0.1082,82683.0,82674.0,0.04400971]
[1743868859544,0.001,82676.0,82674.0,0.04468971]
[1743868859830,0.001,82676.0,82674.0,0.00068]
[1743868860042,0.2093,82675.0,82674.0,0.00068]
[1743868860223,0.21050001,82675.0,82674.0,0.00068]
[1743868860430,0.18211001,82675.0,82674.0,0.00068]
[1743868860632,0.18091,82675.0,82674.0,0.00993246]
[1743868860826,0.18211001,82675.0,82674.0,0.00068]
[1743868861741,0.18311001,82675.0,82674.0,0.00068]
[1743868862432,0.18311001,82675.0,82669.0,0.41363122]
[1743868862733,0.18311001,82675.0,82670.0,0.0989]
[1743868863042,0.16021001,82675.0,82674.0,0.084702]
[1743868864236,0.16021001,82675.0,82674.0,0.191202]
[1743868865340,0.16021001,82675.0,82674.0,0.11545695]
[1743868865642,0.16021001,82675.0,82674.0,0.20015895]
[1743868865940,0.15921001,82675.0,82674.0,0.20015895]
[1743868866242,0.14331709,82675.0,82674.0,0.11545695]
[1743868867541,0.14211708,82675.0,82674.0,0.11545695]
[1743868867744,0.14211708,82675.0,82674.0,0.20015895]
[1743868868343,0.1047,82675.0,82674.0,0.05495942]
[1743868868737,0.1047,82675.0,82674.0,0.13966142]
[1743868871444,0.1037,82675.0,82674.0,0.07916389]
[1743868872138,0.1037,82675.0,82674.0,0.18616389]
[1743868872139,0.1027,82675.0,82674.0,0.18616389]
[1743868872340,0.1037,82675.0,82674.0,0.18616389]
[1743868873546,0.1027,82675.0,82674.0,0.18616389]
[1743868874051,0.1027,82675.0,82674.0,0.19216389]
[1743868874252,0.26146434,82688.0,82682.0,0.0423468]
[1743868874450,0.00140001,82688.0,82687.0,0.10887977]
[1743868874659,0.06431492,82695.0,82694.0,0.0846815]
[1743868875146,0.25289487,82705.0,82704.0,0.0846713]
[1743868875349,0.25289487,82705.0,82704.0,0.0853113]
[1743868875350,0.25389487,82705.0,82704.0,0.0853113]
[1743868875739,0.25389487,82705.0,82704.0,0.23077204]
[1743868876148,0.25389487,82705.0,82704.0,0.33637204]
[1743868877550,0.25389487,82705.0,82704.0,0.25170074]
[1743868877757,0.001,82705.0,82704.0,0.25170074]
[1743868878054,0.001,82705.0,82704.0,0.33637204]
[1743868878555,0.001,82705.0,82704.0,0.23077204]
[1743868878855,0.001,82705.0,82704.0,0.04020074]
[1743868879160,0.001,82705.0,82704.0,0.12423204]
[1743868879456,0.001,82705.0,82704.0,0.12523204]
[1743868880053,0.1004,82705.0,82704.0,0.12523204]
[1743868880648,0.1004,82705.0,82704.0,0.06473451]
[1743868883253,0.1004,82705.0,82704.0,0.001]
[1743868883454,0.1004,82705.0,82704.0,0.0846713]
[1743868884160,0.1004,82705.0,82704.0,0.03884015]
[1743868884351,0.1004,82705.0,82704.0,0.0846713]
[1743868884551,0.1004,82705.0,82701.0,0.042337]
[1743868884759,0.1039,82704.0,82703.0,0.0846723]
[1743868884954,0.1049,82704.0,82703.0,0.0846723]
[1743868886759,0.1049,82704.0,82701.0,0.05034362]
[1743868886962,0.1049,82704.0,82678.0,0.15481594]
[1743868886963,0.1064,82703.0,82691.0,0.0846836]
[1743868887158,0.3608,82699.0,82693.0,0.0846817]
[1743868887368,0.2127,82698.0,82696.0,0.0846793]
[1743868887658,0.3194,82698.0,82696.0,0.1693584]
[1743868887851,0.3194,82698.0,82696.0,0.1693582]
[1743868888051,0.3204,82698.0,82696.0,0.1693582]
[1743868888249,0.3204,82698.0,82687.0,0.1039]
[1743868888453,0.3204,82698.0,82693.0,0.0846816]
[1743868888653,0.3204,82698.0,82693.0,0.0423413]
[1743868888864,0.362739,82698.0,82686.0,0.00018141]
[1743868889061,0.3608,82687.0,82686.0,0.00018141]
[1743868889267,0.3608,82687.0,82686.0,0.08487111]
[1743868889868,0.3608,82687.0,82686.0,0.0846897]
[1743868890067,0.5669,82687.0,82686.0,0.0856897]
[1743868890367,0.5679,82687.0,82686.0,0.0906897]
[1743868890561,0.5679,82687.0,82686.0,0.1901897]
[1743868891261,0.5679,82687.0,82686.0,0.1961897]
[1743868892268,0.5679,82687.0,82686.0,0.1115]
[1743868892767,0.5679,82687.0,82686.0,0.05100247]
[1743868892958,0.5679,82687.0,82686.0,0.05164247]
[1743868893769,0.5679,82687.0,82686.0,0.05693012]
[1743868894064,0.5679,82687.0,82686.0,0.14161982]
[1743868894367,0.5679,82687.0,82686.0,0.05693012]
[1743868895768,0.5679,82687.0,82684.0,0.08112439]
[1743868895968,0.5679,82687.0,82685.0,0.1017]
[1743868896771,0.5679,82687.0,82686.0,0.0846897]
[1743868897466,0.5679,82687.0,82686.0,0.1863897]
[1743868897970,0.4625,82687.0,82686.0,0.23534308]
[1743868898370,0.4625,82687.0,82686.0,0.33934308]
[1743868898771,0.4625,82687.0,82686.0,0.26065338]
[1743868899073,0.4625,82687.0,82686.0,0.34534308]
[1743868899375,0.1017,82687.0,82686.0,0.34534308]
[1743868899566,0.1007,82687.0,82686.0,0.34534308]
[1743868901875,0.1007,82687.0,82686.0,0.28484555]
[1743868902571,0.31366142,82700.0,82699.0,0.0846764]
[1743868902778,0.5736,82707.0,82706.0,0.0846693]
[1743868902965,0.57516001,82707.0,82706.0,0.0846693]
[1743868903978,0.21436001,82707.0,82706.0,0.0846693]
[1743868904869,0.21436001,82707.0,82706.0,0.1026]
[1743868905070,0.21536001,82707.0,82706.0,0.2897693]
[1743868905272,0.00256001,82707.0,82706.0,0.2897693]
[1743868906179,0.00356001,82707.0,82706.0,0.2897693]
[1743868908083,0.00356001,82707.0,82706.0,0.22927177]
[1743868910866,0.00356001,82707.0,82706.0,0.16877424]
[1743868911067,0.11046001,82707.0,82706.0,0.16877424]
[1743868911272,0.10946001,82707.0,82706.0,0.16877424]
[1743868911467,0.11046001,82707.0,82706.0,0.16877424]
[1743868912582,0.00356001,82707.0,82706.0,0.16877424]
[1743868912767,0.10536002,82713.0,82712.0,0.0846631]
[1743868912962,0.0988,82727.0,82722.0,0.0846524]
[1743868913179,0.0988,82727.0,82725.0,0.0846496]
[1743868913472,0.09988,82727.0,82723.0,0.0423259]
[1743868913678,0.0988,82727.0,82724.0,0.0846503]
[1743868913879,0.0988,82727.0,82721.0,0.0423269]
[1743868914077,0.0988,82727.0,82725.0,0.0846494]
[1743868914280,0.0988,82727.0,82726.0,0.0846488]
[1743868914872,0.1018,82727.0,82726.0,0.09354144]
[1743868915076,0.1018,82727.0,82726.0,0.09422144]
[1743868915578,0.1018,82727.0,82726.0,0.0593818]
[1743868915579,0.1058,82727.0,82726.0,0.0593818]
[1743868915778,0.10684001,82727.0,82726.0,0.0593818]
[1743868915977,0.31344001,82727.0,82726.0,0.0593818]
[1743868916181,0.31344001,82727.0,82726.0,0.1440306]
[1743868917082,0.31344001,82727.0,82726.0,0.09316832]
[1743868919277,0.31344001,82727.0,82726.0,0.14335575]
[1743868919981,0.31344001,82727.0,82726.0,0.05982268]
[1743868920280,0.31344001,82727.0,82726.0,0.14447148]
[1743868920677,0.31344001,82727.0,82726.0,0.05982268]
[1743868921572,0.31344001,82727.0,82726.0,0.14447148]
[1743868922687,0.31344001,82727.0,82726.0,0.05982268]
[1743868923088,0.31344001,82727.0,82724.0,0.12630025]
[1743868923286,0.31344001,82727.0,82725.0,0.0846496]
[1743868923496,0.31344001,82727.0,82725.0,0.14294343]
[1743868924101,0.31344001,82727.0,82726.0,0.0846488]
[1743868924299,0.30944001,82727.0,82726.0,0.0846488]
[1743868924490,0.31344001,82727.0,82725.0,0.14294323]
[1743868924692,0.31344001,82727.0,82725.0,0.13381623]
[1743868924997,0.31344001,82727.0,82725.0,0.13381653]
[1743868925389,0.31344001,82727.0,82725.0,0.09149163]
[1743868925799,0.0004,82732.0,82731.0,0.0846437]
[1743868926199,0.00156,82732.0,82731.0,0.2949437]
[1743868927196,0.10806,82732.0,82731.0,0.2949437]
[1743868927395,0.10806,82732.0,82729.0,0.3608]
[1743868927591,0.0846447,82730.0,82729.0,0.3608]
[1743868927790,0.0846488,82726.0,82717.0,0.00018141]
[1743868927997,0.0846529,82722.0,82717.0,0.00018141]
[1743868928503,0.042328,82719.0,82717.0,0.00018141]
[1743868928800,0.191657,82718.0,82717.0,0.00911111]
[1743868928994,0.658357,82718.0,82717.0,0.00018141]
[1743868929194,0.658357,82718.0,82703.0,0.3608]
[1743868929195,0.0846676,82708.0,82706.0,0.0846685]
[1743868929390,0.3067,82707.0,82704.0,0.0846707]
[1743868929596,0.3067,82707.0,82704.0,0.13289721]
[1743868929800,0.30786,82707.0,82705.0,0.0846698]
[1743868930004,0.30786,82707.0,82706.0,0.0846693]
[1743868930298,0.30786,82707.0,82705.0,0.0846701]
[1743868930500,0.30786,82707.0,82704.0,0.04822651]
[1743868930805,0.0846703,82705.0,82704.0,0.006]
[1743868931197,0.0846764,82699.0,82698.0,0.00018141]
[1743868931404,0.44659641,82699.0,82698.0,0.00018141]
[1743868931594,0.56662001,82699.0,82685.0,0.3608]
[1743868931795,0.0423427,82691.0,82687.0,0.0846886]
[1743868932103,0.3029,82690.0,82687.0,0.00917288]
[1743868932303,0.3029,82690.0,82689.0,0.0846867]
[1743868933203,0.00018141,82698.0,82697.0,0.0846785]
[1743868933805,0.00018141,82698.0,82697.0,0.1927785]
[1743868934608,0.00130142,82698.0,82697.0,0.1927785]
[1743868934906,0.00130142,82698.0,82697.0,0.1987785]
[1743868935104,0.00130142,82698.0,82697.0,0.1141]
[1743868935604,0.00130142,82698.0,82697.0,0.1987785]
[1743868936102,0.08597892,82698.0,82697.0,0.1141]
[1743868936300,0.18947892,82698.0,82697.0,0.006]
[1743868936501,0.19047892,82698.0,82697.0,0.006]
[1743868936803,0.28967892,82698.0,82697.0,0.006]
[1743868938395,0.20500142,82698.0,82696.0,0.13398197]
[1743868938597,0.00230142,82698.0,82697.0,0.2918785]
[1743868938904,0.00118141,82698.0,82697.0,0.2918785]
[1743868939600,0.00018141,82698.0,82697.0,0.2918785]
[1743868939799,0.00118141,82698.0,82697.0,0.2918785]
[1743868940008,0.00118141,82698.0,82697.0,0.2925585]
[1743868941206,0.00118141,82698.0,82697.0,0.20788]
[1743868941394,0.00230142,82698.0,82697.0,0.31598]
[1743868941596,0.00118141,82698.0,82697.0,0.00068]
[1743868941797,0.00230142,82698.0,82697.0,0.00068]
[1743868941999,0.00118141,82698.0,82697.0,0.00068]
[1743868942296,0.08697892,82698.0,82697.0,0.00068]
[1743868942705,0.21270142,82698.0,82697.0,0.00068]
[1743868944404,0.21270142,82698.0,82695.0,0.40908247]
[1743868944606,0.21270142,82698.0,82695.0,0.41040247]
[1743868944903,0.21270142,82698.0,82696.0,0.0846795]
[1743868945301,0.21270142,82698.0,82697.0,0.1021]
[1743868945503,0.21158141,82698.0,82697.0,0.1021]
[1743868945704,0.21058141,82698.0,82697.0,0.1867785]
[1743868945902,0.21258141,82698.0,82697.0,0.1021]
[1743868946505,0.21158141,82698.0,82695.0,0.30598247]
[1743868946707,0.1044,82697.0,82695.0,0.30598247]
[1743868947100,0.2047,82696.0,82695.0,0.30598247]
[1743868947302,0.0423416,82693.0,82689.0,0.04816266]
[1743868947601,0.0846877,82688.0,82674.0,0.3608]
[1743868947909,0.0423471,82682.0,82675.0,0.0847005]
[1743868948103,0.2101,82681.0,82680.0,0.0846959]
[1743868948404,0.3115,82681.0,82677.0,0.084698]
[1743868948600,0.36414,82681.0,82678.0,0.0846976]
[1743868949001,0.36414,82681.0,82679.0,0.0846966]
[1743868949202,0.36414,82681.0,82679.0,0.09373466]
[1743868949404,0.4488349,82681.0,82679.0,0.00903806]
[1743868949598,0.4488349,82681.0,82678.0,0.0846979]
[1743868949804,0.0846965,82680.0,82677.0,0.084698]
[1743868950009,0.0846971,82679.0,82677.0,0.084698]
[1743868950314,0.2083,82678.0,82675.0,0.1496504]
[1743868950508,0.2083,82678.0,82677.0,0.0846982]
[1743868951021,0.2083,82678.0,82677.0,0.0856982]
[1743868951507,0.2083,82678.0,82677.0,0.0846982]
[1743868951818,0.2093,82678.0,82677.0,0.0856982]
[1743868952118,0.26194,82678.0,82677.0,0.2943982]
[1743868952319,0.26194,82678.0,82677.0,0.30338362]
[1743868952807,0.2093,82678.0,82677.0,0.30338362]
[1743868953520,0.2103,82678.0,82677.0,0.21868542]
[1743868954213,0.2103,82678.0,82677.0,0.30338362]
[1743868955020,0.21162,82678.0,82677.0,0.30338362]
[1743868955312,0.21162,82678.0,82677.0,0.21868542]
[1743868955704,0.21162,82678.0,82677.0,0.11538542]
[1743868956411,0.21162,82678.0,82677.0,0.05488789]
[1743868957420,0.21162,82678.0,82677.0,0.13958689]
[1743868957814,0.21162,82678.0,82677.0,0.15728789]
[1743868958822,0.21162,82678.0,82677.0,0.05488789]
[1743868959020,0.2963179,82678.0,82677.0,0.00898542]
[1743868959205,0.0846993,82677.0,82674.0,0.42231856]
[1743868959407,0.084701,82675.0,82674.0,0.36182103]
[1743868959925,0.190801,82675.0,82674.0,0.36182103]
[1743868960119,0.294601,82675.0,82674.0,0.36182103]
[1743868960518,0.294601,82675.0,82674.0,0.37098897]
[1743868960719,0.295601,82675.0,82674.0,0.37098897]
[1743868962023,0.296921,82675.0,82674.0,0.0706865]
[1743868962222,0.297921,82675.0,82672.0,0.0847039]
[1743868962417,0.297921,82675.0,82671.0,0.00078621]
[1743868962819,0.297921,82675.0,82672.0,0.0847036]
[1743868963023,0.0847041,82672.0,82671.0,0.00078621]
[1743868963521,0.2025,82672.0,82671.0,0.00078621]
[1743868963716,0.20382,82672.0,82671.0,0.00078621]
[1743868964322,0.20382,82672.0,82671.0,0.09938621]
[1743868964632,0.20482,82672.0,82671.0,0.10038621]